[Event "Early-Titled-Tuesday-Blitz-March-19-2024"]
[Site "Chess.com"]
[Date "2024.03.19"]
[Round "6"]
[White "LLariMarc"]
[Black "SlavenPastar"]
[Result "1-0"]
[WhiteElo "2423"]
[BlackElo "2558"]
[TimeControl "180+1"]
[EndTime "9:07:08 PDT"]
[Termination "LLariMarc won on time"]

1. d4 {[%clk 0:03:00.9]} 1... b6 {[%clk 0:02:16.8]} 2. c4 {[%clk 0:03:00.1]}
2... Bb7 {[%clk 0:02:16]} 3. Nc3 {[%clk 0:03:00]} 3... e6 {[%clk 0:02:16.4]} 4.
Nf3 {[%clk 0:02:58.8]} 4... Nf6 {[%clk 0:02:17]} 5. Bg5 {[%clk 0:02:58.1]} 5...
Be7 {[%clk 0:02:17.2]} 6. e3 {[%clk 0:02:58.3]} 6... h6 {[%clk 0:02:17.7]} 7.
Bh4 {[%clk 0:02:58.3]} 7... Ne4 {[%clk 0:02:17.2]} 8. Bxe7 {[%clk 0:02:57.5]}
8... Qxe7 {[%clk 0:02:14.7]} 9. Nxe4 {[%clk 0:02:56.5]} 9... Bxe4 {[%clk
0:02:15.6]} 10. Bd3 {[%clk 0:02:56.8]} 10... Bxd3 {[%clk 0:02:08.8]} 11. Qxd3
{[%clk 0:02:57.7]} 11... O-O {[%clk 0:02:08.6]} 12. O-O {[%clk 0:02:53.5]} 12...
d6 {[%clk 0:02:09.3]} 13. e4 {[%clk 0:02:53.7]} 13... Nd7 {[%clk 0:02:09.4]} 14.
Rfe1 {[%clk 0:02:52.5]} 14... e5 {[%clk 0:02:09]} 15. Rad1 {[%clk 0:02:50.3]}
15... exd4 {[%clk 0:02:08]} 16. Nxd4 {[%clk 0:02:43.1]} 16... Ne5 {[%clk
0:02:07.9]} 17. Qc3 {[%clk 0:02:36.6]} 17... Ng6 {[%clk 0:01:39.1]} 18. Nf5
{[%clk 0:02:34.5]} 18... Qe5 {[%clk 0:01:37.4]} 19. Qxe5 {[%clk 0:02:32.8]}
19... Nxe5 {[%clk 0:01:31.8]} 20. b3 {[%clk 0:02:32.7]} 20... Kh7 {[%clk
0:01:24.9]} 21. f3 {[%clk 0:02:30.1]} 21... g6 {[%clk 0:01:24.7]} 22. Ne3 {[%clk
0:02:28.8]} 22... Rad8 {[%clk 0:01:14.7]} 23. Nd5 {[%clk 0:02:27]} 23... c6
{[%clk 0:01:15.1]} 24. Ne3 {[%clk 0:02:23.3]} 24... f6 {[%clk 0:01:02.8]} 25.
Rd2 {[%clk 0:02:22.2]} 25... Rd7 {[%clk 0:00:58.7]} 26. Red1 {[%clk 0:02:19.9]}
26... Rfd8 {[%clk 0:00:59]} 27. h3 {[%clk 0:02:19.1]} 27... Kg7 {[%clk
0:00:57.2]} 28. Kf2 {[%clk 0:02:17.8]} 28... h5 {[%clk 0:00:53.9]} 29. h4 {[%clk
0:02:13.3]} 29... Kf8 {[%clk 0:00:52.6]} 30. g3 {[%clk 0:02:11.5]} 30... Ke7
{[%clk 0:00:52.6]} 31. Nc2 {[%clk 0:02:07.4]} 31... b5 {[%clk 0:00:46.9]} 32.
cxb5 {[%clk 0:02:06.4]} 32... cxb5 {[%clk 0:00:47.4]} 33. Nb4 {[%clk 0:02:06.1]}
33... Rc8 {[%clk 0:00:44.6]} 34. Ke2 {[%clk 0:02:02.1]} 34... Ke6 {[%clk
0:00:41.3]} 35. Rc2 {[%clk 0:02:01.7]} 35... Rxc2+ {[%clk 0:00:39.9]} 36. Nxc2
{[%clk 0:02:02.6]} 36... Ke7 {[%clk 0:00:35.4]} 37. Nd4 {[%clk 0:02:00.4]} 37...
Rc7 {[%clk 0:00:27]} 38. f4 {[%clk 0:01:58.4]} 38... Ng4 {[%clk 0:00:24.6]} 39.
Nxb5 {[%clk 0:01:56.9]} 39... Rc2+ {[%clk 0:00:13.9]} 40. Rd2 {[%clk 0:01:56.8]}
40... Rc1 {[%clk 0:00:14.2]} 41. Nxa7 {[%clk 0:01:56.2]} 41... Rg1 {[%clk
0:00:13.4]} 42. Kf3 {[%clk 0:01:50.6]} 42... Rf1+ {[%clk 0:00:13.5]} 43. Ke2
{[%clk 0:01:41.9]} 43... Rg1 {[%clk 0:00:13.3]} 44. Nc6+ {[%clk 0:01:40]} 44...
Kd7 {[%clk 0:00:11.5]} 45. Nb4 {[%clk 0:01:34.7]} 45... Rg2+ {[%clk 0:00:10.4]}
46. Kd3 {[%clk 0:01:32.6]} 46... Rxg3+ {[%clk 0:00:10.8]} 47. Kd4 {[%clk
0:01:32.5]} 47... Rf3 {[%clk 0:00:10]} 48. Nd5 {[%clk 0:01:32.7]} 48... Rh3
{[%clk 0:00:05.8]} 49. Rc2 {[%clk 0:01:31.3]} 49... Rxh4 {[%clk 0:00:05.5]} 50.
Rc7+ {[%clk 0:01:31.1]} 50... Kd8 {[%clk 0:00:06.1]} 51. Rg7 {[%clk 0:01:29.1]}
51... Rh1 {[%clk 0:00:03]} 52. Rxg6 {[%clk 0:01:28.2]} 52... Rd1+ {[%clk
0:00:03.7]} 53. Kc4 {[%clk 0:01:28.4]} 53... Nf2 {[%clk 0:00:02.9]} 54. Rh6
{[%clk 0:01:22.9]} 54... Nxe4 {[%clk 0:00:03]} 55. Rxh5 {[%clk 0:01:23]} 55...
Rc1+ {[%clk 0:00:03]} 56. Kd4 {[%clk 0:01:21.3]} 56... Nd2 {[%clk 0:00:02.2]}
57. Rh8+ {[%clk 0:01:19.2]} 57... Kd7 {[%clk 0:00:02]} 58. Nxf6+ {[%clk
0:01:19.7]} 58... Ke6 {[%clk 0:00:02.3]} 59. Nd5 {[%clk 0:01:18.5]} 59... Nf3+
{[%clk 0:00:02]} 60. Ke3 {[%clk 0:01:15.7]} 60... Ng1 {[%clk 0:00:01.3]} 61. Nb4
{[%clk 0:01:13.7]} 1-0

[Event "Early-Titled-Tuesday-Blitz-March-19-2024"]
[Site "Chess.com"]
[Date "2024.03.19"]
[Round "6"]
[White "atalz0"]
[Black "santosalberto1987"]
[Result "0-1"]
[WhiteElo "2367"]
[BlackElo "2565"]
[TimeControl "180+1"]
[EndTime "9:07:09 PDT"]
[Termination "santosalberto1987 won on time"]

1. d4 {[%clk 0:03:00.9]} 1... Nf6 {[%clk 0:02:56]} 2. c4 {[%clk 0:03:00.8]} 2...
d6 {[%clk 0:02:56.2]} 3. Nc3 {[%clk 0:02:59.6]} 3... e5 {[%clk 0:02:56.2]} 4.
dxe5 {[%clk 0:02:59.9]} 4... dxe5 {[%clk 0:02:56.3]} 5. Qxd8+ {[%clk 0:03:00.8]}
5... Kxd8 {[%clk 0:02:57]} 6. Nf3 {[%clk 0:03:01.2]} 6... Nc6 {[%clk 0:02:50.9]}
7. Bg5 {[%clk 0:02:56.5]} 7... Be6 {[%clk 0:02:50.6]} 8. O-O-O+ {[%clk
0:02:43.7]} 8... Kc8 {[%clk 0:02:50.4]} 9. Nd5 {[%clk 0:02:35.9]} 9... Ne4
{[%clk 0:02:44.8]} 10. Be3 {[%clk 0:02:27]} 10... Bc5 {[%clk 0:02:42.5]} 11.
Bxc5 {[%clk 0:02:19.4]} 11... Nxc5 {[%clk 0:02:43.4]} 12. Ng5 {[%clk 0:02:13.9]}
12... h6 {[%clk 0:02:34.6]} 13. Nxe6 {[%clk 0:02:11.1]} 13... Nxe6 {[%clk
0:02:35.5]} 14. e3 {[%clk 0:02:10.5]} 14... a5 {[%clk 0:02:29.3]} 15. g3 {[%clk
0:02:03.7]} 15... Nb4 {[%clk 0:02:27.1]} 16. a3 {[%clk 0:01:58.9]} 16... Nxd5
{[%clk 0:02:26.9]} 17. Rxd5 {[%clk 0:01:56.7]} 17... f6 {[%clk 0:02:23.3]} 18.
Bh3 {[%clk 0:01:56.5]} 18... Re8 {[%clk 0:02:23.6]} 19. Rhd1 {[%clk 0:01:55.2]}
19... Ra6 {[%clk 0:02:22.5]} 20. b3 {[%clk 0:01:24.8]} 20... Kb8 {[%clk
0:02:21.8]} 21. Kb2 {[%clk 0:01:22.9]} 21... Rc6 {[%clk 0:02:17.3]} 22. Rd7
{[%clk 0:01:16.5]} 22... a4 {[%clk 0:02:08.4]} 23. Bxe6 {[%clk 0:01:06.4]} 23...
Rexe6 {[%clk 0:02:04.9]} 24. Rxg7 {[%clk 0:00:55.7]} 24... axb3 {[%clk
0:02:05.1]} 25. Kxb3 {[%clk 0:00:55.8]} 25... Rb6+ {[%clk 0:02:04.8]} 26. Kc3
{[%clk 0:00:55.3]} 26... Ra6 {[%clk 0:02:05]} 27. Ra1 {[%clk 0:00:51.1]} 27...
Rec6 {[%clk 0:02:04.1]} 28. a4 {[%clk 0:00:49.8]} 28... b5 {[%clk 0:02:00.6]}
29. Kb4 {[%clk 0:00:45]} 29... Rxc4+ {[%clk 0:01:48.3]} 30. Kxb5 {[%clk
0:00:40.8]} 30... Rac6 {[%clk 0:01:48.1]} 31. Rb1 {[%clk 0:00:20.4]} 31... Ka7
{[%clk 0:01:34.9]} 32. Ka5 {[%clk 0:00:18.4]} 32... Ra6+ {[%clk 0:01:27]} 33.
Kb5 {[%clk 0:00:18.2]} 33... Raxa4 {[%clk 0:01:27.6]} 34. Rxc7+ {[%clk
0:00:15.2]} 34... Rxc7 {[%clk 0:01:27.5]} 35. Kxa4 {[%clk 0:00:15.9]} 35... Rc2
{[%clk 0:01:27.8]} 36. Rf1 {[%clk 0:00:15.3]} 36... Kb6 {[%clk 0:01:26.4]} 37.
Kb3 {[%clk 0:00:15.3]} 37... Re2 {[%clk 0:01:26.4]} 38. Kc3 {[%clk 0:00:15.6]}
38... Kc5 {[%clk 0:01:26.6]} 39. Kd3 {[%clk 0:00:15.9]} 39... Ra2 {[%clk
0:01:26.6]} 40. Ke4 {[%clk 0:00:16.3]} 40... Kd6 {[%clk 0:01:25.6]} 41. Kf5
{[%clk 0:00:16.7]} 41... Ke7 {[%clk 0:01:25.8]} 42. Kg6 {[%clk 0:00:17.1]} 42...
Ke6 {[%clk 0:01:23.4]} 43. g4 {[%clk 0:00:16.2]} 43... e4 {[%clk 0:01:21.6]} 44.
Kxh6 {[%clk 0:00:15]} 44... f5 {[%clk 0:01:22]} 45. h3 {[%clk 0:00:14.2]} 45...
Ke5 {[%clk 0:01:20.4]} 46. Kg5 {[%clk 0:00:13.3]} 46... Ra8 {[%clk 0:01:18.4]}
47. Kh4 {[%clk 0:00:11.3]} 47... f4 {[%clk 0:01:17.5]} 48. exf4+ {[%clk
0:00:10.8]} 48... Kxf4 {[%clk 0:01:17.7]} 49. Kh5 {[%clk 0:00:08.6]} 49... Rh8+
{[%clk 0:01:16.7]} 50. Kg6 {[%clk 0:00:09]} 50... Rxh3 {[%clk 0:01:17.3]} 51.
Rg1 {[%clk 0:00:08.8]} 51... Rh2 {[%clk 0:01:16.6]} 52. g5 {[%clk 0:00:08]}
52... Rxf2 {[%clk 0:01:16.4]} 53. Kf6 {[%clk 0:00:06.4]} 53... Ke3+ {[%clk
0:01:15.1]} 54. Ke5 {[%clk 0:00:06.4]} 54... Kf3 {[%clk 0:01:12.9]} 55. g6
{[%clk 0:00:04.5]} 55... Ra2 {[%clk 0:01:12.2]} 56. g7 {[%clk 0:00:04.5]} 56...
Ra8 {[%clk 0:01:08.9]} 57. g8=Q {[%clk 0:00:03.4]} 57... Rxg8 {[%clk 0:01:09.2]}
58. Rxg8 {[%clk 0:00:04]} 58... e3 {[%clk 0:01:10.1]} 59. Rf8+ {[%clk
0:00:04.6]} 59... Kg2 {[%clk 0:01:09.5]} 0-1

[Event "Early-Titled-Tuesday-Blitz-March-19-2024"]
[Site "Chess.com"]
[Date "2024.03.19"]
[Round "6"]
[White "Szparu"]
[Black "Dyadya81"]
[Result "0-1"]
[WhiteElo "2807"]
[BlackElo "2954"]
[TimeControl "180+1"]
[EndTime "9:07:12 PDT"]
[Termination "Dyadya81 won by checkmate"]

1. e4 {[%clk 0:02:59.5]} 1... c6 {[%clk 0:03:00.4]} 2. d4 {[%clk 0:02:59.1]}
2... d5 {[%clk 0:03:01.2]} 3. e5 {[%clk 0:02:59.8]} 3... Bf5 {[%clk 0:03:01]} 4.
h4 {[%clk 0:02:59.7]} 4... h6 {[%clk 0:03:00]} 5. g4 {[%clk 0:02:56.2]} 5... Bd7
{[%clk 0:03:00]} 6. h5 {[%clk 0:02:55]} 6... Qc8 {[%clk 0:02:58.1]} 7. Be2
{[%clk 0:02:49.4]} 7... c5 {[%clk 0:02:56.5]} 8. c3 {[%clk 0:02:45.7]} 8... Nc6
{[%clk 0:02:56]} 9. Na3 {[%clk 0:02:41.7]} 9... e6 {[%clk 0:02:47.4]} 10. Nc2
{[%clk 0:02:41.1]} 10... Qc7 {[%clk 0:02:34.7]} 11. f4 {[%clk 0:02:38.2]} 11...
cxd4 {[%clk 0:02:32.4]} 12. Nxd4 {[%clk 0:02:24.1]} 12... Nxd4 {[%clk
0:02:25.5]} 13. cxd4 {[%clk 0:02:25]} 13... Ne7 {[%clk 0:02:24.7]} 14. Nf3
{[%clk 0:02:24.3]} 14... Nc6 {[%clk 0:02:22.8]} 15. Kf2 {[%clk 0:02:23.7]} 15...
Qb6 {[%clk 0:02:21.4]} 16. Kg3 {[%clk 0:02:23.6]} 16... O-O-O {[%clk 0:02:15.1]}
17. a3 {[%clk 0:02:15.2]} 17... Be7 {[%clk 0:02:05]} 18. b4 {[%clk 0:02:13.7]}
18... Kb8 {[%clk 0:02:04.7]} 19. Be3 {[%clk 0:01:54.8]} 19... f6 {[%clk
0:02:03.4]} 20. Qd2 {[%clk 0:01:51.8]} 20... Rhf8 {[%clk 0:02:02.7]} 21. Bd3
{[%clk 0:01:23.7]} 21... Rc8 {[%clk 0:01:45.8]} 22. Rac1 {[%clk 0:01:21.7]}
22... f5 {[%clk 0:01:29.7]} 23. Rc2 {[%clk 0:01:00]} 23... fxg4 {[%clk
0:01:22.4]} 24. Kxg4 {[%clk 0:01:00.9]} 24... Bd8 {[%clk 0:00:57.6]} 25. Rhc1
{[%clk 0:00:57.8]} 25... Ne7 {[%clk 0:00:57.9]} 26. Rxc8+ {[%clk 0:00:57.3]}
26... Bxc8 {[%clk 0:00:58.8]} 27. Nh4 {[%clk 0:00:51.7]} 27... Nf5 {[%clk
0:00:56.9]} 28. Ng6 {[%clk 0:00:51.1]} 28... Re8 {[%clk 0:00:50.1]} 29. Bf2
{[%clk 0:00:47.4]} 29... Bd7 {[%clk 0:00:45.8]} 30. Kh3 {[%clk 0:00:41.9]} 30...
a5 {[%clk 0:00:31.6]} 31. Rc5 {[%clk 0:00:34.5]} 31... axb4 {[%clk 0:00:28.2]}
32. axb4 {[%clk 0:00:35.4]} 32... Qa7 {[%clk 0:00:26.3]} 33. Bxf5 {[%clk
0:00:21.3]} 33... exf5 {[%clk 0:00:27.2]} 34. Rxd5 {[%clk 0:00:22]} 34... Qa3+
{[%clk 0:00:24.5]} 35. Qe3 {[%clk 0:00:19.4]} 35... Qa4 {[%clk 0:00:22.1]} 36.
b5 {[%clk 0:00:17.1]} 36... Bxb5 {[%clk 0:00:18.9]} 37. e6 {[%clk 0:00:17.6]}
37... Bf1+ {[%clk 0:00:18.7]} 38. Kh2 {[%clk 0:00:17.3]} 38... Qd1 {[%clk
0:00:17.5]} 39. Rxf5 {[%clk 0:00:10.9]} 39... Qg4 {[%clk 0:00:14.2]} 40. Qh3
{[%clk 0:00:07.5]} 40... Qxh3+ {[%clk 0:00:13.3]} 41. Kg1 {[%clk 0:00:05.2]}
41... Qg2# {[%clk 0:00:14.2]} 0-1

[Event "Early-Titled-Tuesday-Blitz-March-19-2024"]
[Site "Chess.com"]
[Date "2024.03.19"]
[Round "6"]
[White "Eagle_2019"]
[Black "SmirnovAlexandrA"]
[Result "0-1"]
[WhiteElo "2854"]
[BlackElo "2646"]
[TimeControl "180+1"]
[EndTime "9:07:12 PDT"]
[Termination "SmirnovAlexandrA won on time"]

1. d4 {[%clk 0:03:00.9]} 1... Nf6 {[%clk 0:02:56.8]} 2. Bg5 {[%clk 0:02:59.6]}
2... g6 {[%clk 0:02:57.7]} 3. Bxf6 {[%clk 0:02:59]} 3... exf6 {[%clk 0:02:58.6]}
4. e3 {[%clk 0:02:59.4]} 4... d5 {[%clk 0:02:58.8]} 5. c4 {[%clk 0:02:58.5]}
5... c6 {[%clk 0:02:58.3]} 6. Nc3 {[%clk 0:02:55.3]} 6... Bg7 {[%clk 0:02:53.3]}
7. cxd5 {[%clk 0:02:54.6]} 7... cxd5 {[%clk 0:02:54.2]} 8. Qb3 {[%clk
0:02:54.5]} 8... O-O {[%clk 0:02:54.1]} 9. Qxd5 {[%clk 0:02:53.4]} 9... Qc7
{[%clk 0:02:39.6]} 10. Nf3 {[%clk 0:02:51.7]} 10... Be6 {[%clk 0:02:38.8]} 11.
Qb5 {[%clk 0:02:44.1]} 11... a6 {[%clk 0:02:38]} 12. Qd3 {[%clk 0:02:43.4]}
12... Nc6 {[%clk 0:02:34.9]} 13. Be2 {[%clk 0:02:40.6]} 13... f5 {[%clk
0:02:29.1]} 14. O-O {[%clk 0:02:39.8]} 14... Rad8 {[%clk 0:02:27.6]} 15. Rac1
{[%clk 0:02:21.6]} 15... Qb8 {[%clk 0:02:16]} 16. Rfd1 {[%clk 0:02:14.3]} 16...
f4 {[%clk 0:02:14.6]} 17. Qd2 {[%clk 0:01:48.8]} 17... fxe3 {[%clk 0:02:13.5]}
18. Qxe3 {[%clk 0:01:45]} 18... Rfe8 {[%clk 0:02:08.3]} 19. Qg5 {[%clk
0:01:04.9]} 19... Nxd4 {[%clk 0:01:58.3]} 20. Nxd4 {[%clk 0:01:02.4]} 20... Rxd4
{[%clk 0:01:59.2]} 21. Rxd4 {[%clk 0:01:00.1]} 21... Bxd4 {[%clk 0:02:00.1]} 22.
Bf3 {[%clk 0:00:56.6]} 22... Bxc3 {[%clk 0:01:47.2]} 23. Rxc3 {[%clk 0:00:34.4]}
23... Bxa2 {[%clk 0:01:46.8]} 24. g3 {[%clk 0:00:33.6]} 24... Be6 {[%clk
0:01:40.9]} 25. h4 {[%clk 0:00:29]} 25... b5 {[%clk 0:01:32]} 26. h5 {[%clk
0:00:25.5]} 26... Qd8 {[%clk 0:01:31.7]} 27. Qf4 {[%clk 0:00:22.1]} 27... Qb8
{[%clk 0:01:21.9]} 28. Qf6 {[%clk 0:00:20.5]} 28... Qd8 {[%clk 0:01:21.1]} 29.
Qf4 {[%clk 0:00:20.4]} 29... Qb8 {[%clk 0:00:38.9]} 30. Qxb8 {[%clk 0:00:17.8]}
30... Rxb8 {[%clk 0:00:38.3]} 31. h6 {[%clk 0:00:17.5]} 31... Kf8 {[%clk
0:00:38.6]} 32. Rc6 {[%clk 0:00:11.4]} 32... a5 {[%clk 0:00:36.3]} 33. Ra6
{[%clk 0:00:10.7]} 33... a4 {[%clk 0:00:36.3]} 34. Bc6 {[%clk 0:00:10.6]} 34...
Ke7 {[%clk 0:00:34.5]} 35. Ra5 {[%clk 0:00:09.5]} 35... Bc4 {[%clk 0:00:33.7]}
36. Ra7+ {[%clk 0:00:08.5]} 36... Kd6 {[%clk 0:00:33.2]} 37. Bf3 {[%clk
0:00:08.3]} 37... Kc5 {[%clk 0:00:33.2]} 38. Rc7+ {[%clk 0:00:03.7]} 38... Kb4
{[%clk 0:00:33.1]} 39. Bd1 {[%clk 0:00:03.8]} 39... Rd8 {[%clk 0:00:33.6]} 40.
Bg4 {[%clk 0:00:02.7]} 40... Kb3 {[%clk 0:00:31.8]} 41. Bd7 {[%clk 0:00:02.4]}
41... Kxb2 {[%clk 0:00:31.2]} 0-1

[Event "Early-Titled-Tuesday-Blitz-March-19-2024"]
[Site "Chess.com"]
[Date "2024.03.19"]
[Round "6"]
[White "shimastream"]
[Black "Rodalquilar"]
[Result "1-0"]
[WhiteElo "3006"]
[BlackElo "2790"]
[TimeControl "180+1"]
[EndTime "9:07:12 PDT"]
[Termination "shimastream won on time"]

1. e4 {[%clk 0:03:00.9]} 1... d5 {[%clk 0:03:00.4]} 2. exd5 {[%clk 0:02:55.2]}
2... Qxd5 {[%clk 0:03:01.3]} 3. h3 {[%clk 0:02:48]} 3... Nf6 {[%clk 0:02:56.9]}
4. Nf3 {[%clk 0:02:47.5]} 4... Bf5 {[%clk 0:02:43.3]} 5. d4 {[%clk 0:02:40.7]}
5... Nc6 {[%clk 0:02:29.4]} 6. Nc3 {[%clk 0:02:34.1]} 6... Qd7 {[%clk
0:02:24.7]} 7. Bb5 {[%clk 0:02:33.3]} 7... O-O-O {[%clk 0:02:18.4]} 8. Ne5
{[%clk 0:02:18.3]} 8... Qxd4 {[%clk 0:02:02.7]} 9. Nxf7 {[%clk 0:02:02.5]} 9...
Ne4 {[%clk 0:01:43.9]} 10. Be3 {[%clk 0:01:12.6]} 10... Nxc3 {[%clk 0:01:27]}
11. Bxd4 {[%clk 0:01:11.6]} 11... Nxd1 {[%clk 0:01:21.9]} 12. Bxc6 {[%clk
0:00:58.2]} 12... Rxd4 {[%clk 0:01:13]} 13. Rxd1 {[%clk 0:00:31.2]} 13... Rxd1+
{[%clk 0:00:58]} 14. Kxd1 {[%clk 0:00:32.1]} 14... Rg8 {[%clk 0:00:56.1]} 15.
Bd5 {[%clk 0:00:20.7]} 15... e6 {[%clk 0:00:54.6]} 16. Bb3 {[%clk 0:00:21.4]}
16... Bc5 {[%clk 0:00:35.4]} 17. Ke2 {[%clk 0:00:17.1]} 17... Rf8 {[%clk
0:00:30.7]} 18. Ng5 {[%clk 0:00:15.4]} 18... h6 {[%clk 0:00:22.7]} 19. Nf3
{[%clk 0:00:09.6]} 19... Bd6 {[%clk 0:00:10.4]} 20. Nd4 {[%clk 0:00:07.4]} 20...
Be5 {[%clk 0:00:06.5]} 21. c3 {[%clk 0:00:07.3]} 21... Re8 {[%clk 0:00:05.6]}
22. Ke3 {[%clk 0:00:07.2]} 22... c5 {[%clk 0:00:03.9]} 23. Nf3 {[%clk
0:00:06.2]} 23... Bd6 {[%clk 0:00:03.4]} 24. Rd1 {[%clk 0:00:06.2]} 24... Kc7
{[%clk 0:00:04]} 25. a4 {[%clk 0:00:05.4]} 25... a6 {[%clk 0:00:04.2]} 26. a5
{[%clk 0:00:05.5]} 26... Bg6 {[%clk 0:00:04.6]} 27. Nd2 {[%clk 0:00:05.2]} 27...
Rf8 {[%clk 0:00:03.3]} 28. Nc4 {[%clk 0:00:05.2]} 28... Bf4+ {[%clk 0:00:03.7]}
29. Ke2 {[%clk 0:00:05.9]} 29... Bh5+ {[%clk 0:00:03.1]} 30. f3 {[%clk
0:00:06.2]} 30... Bg6 {[%clk 0:00:03.7]} 31. Nb6 {[%clk 0:00:06.2]} 31... Rf7
{[%clk 0:00:03.2]} 32. Bxe6 {[%clk 0:00:05.3]} 32... Re7 {[%clk 0:00:03.6]} 33.
Nd5+ {[%clk 0:00:05.4]} 33... Kd6 {[%clk 0:00:02.9]} 34. Nxe7+ {[%clk
0:00:06.3]} 34... Kxe7 {[%clk 0:00:02]} 35. Bd5 {[%clk 0:00:06.7]} 1-0

[Event "Early-Titled-Tuesday-Blitz-March-19-2024"]
[Site "Chess.com"]
[Date "2024.03.19"]
[Round "6"]
[White "Leo_C"]
[Black "whiteglovethief"]
[Result "1-0"]
[WhiteElo "2644"]
[BlackElo "2448"]
[TimeControl "180+1"]
[EndTime "9:07:12 PDT"]
[Termination "Leo_C won by resignation"]

1. d4 {[%clk 0:02:20.1]} 1... e6 {[%clk 0:02:40.9]} 2. c4 {[%clk 0:02:19.3]}
2... d5 {[%clk 0:02:40.6]} 3. Nf3 {[%clk 0:02:18.7]} 3... a6 {[%clk 0:02:38.9]}
4. Nbd2 {[%clk 0:02:16.6]} 4... Nf6 {[%clk 0:02:35.5]} 5. g3 {[%clk 0:02:16.6]}
5... c5 {[%clk 0:02:35.6]} 6. cxd5 {[%clk 0:02:16.4]} 6... Nxd5 {[%clk
0:02:29.5]} 7. Bg2 {[%clk 0:02:15.8]} 7... cxd4 {[%clk 0:02:26.8]} 8. Nxd4
{[%clk 0:02:15.1]} 8... Nf6 {[%clk 0:02:24.2]} 9. N4b3 {[%clk 0:02:08.5]} 9...
Be7 {[%clk 0:02:18.5]} 10. O-O {[%clk 0:02:07.9]} 10... O-O {[%clk 0:02:17.1]}
11. Nc4 {[%clk 0:02:08.2]} 11... Qc7 {[%clk 0:02:11.6]} 12. Nba5 {[%clk
0:02:01.9]} 12... Rd8 {[%clk 0:02:01.4]} 13. Bf4 {[%clk 0:01:51.4]} 13... Rxd1
{[%clk 0:01:52.2]} 14. Bxc7 {[%clk 0:01:46.5]} 14... Rxf1+ {[%clk 0:01:52.7]}
15. Kxf1 {[%clk 0:01:41.1]} 15... Nbd7 {[%clk 0:01:45.8]} 16. Rd1 {[%clk
0:01:31.7]} 16... Ne8 {[%clk 0:01:40.3]} 17. Bf4 {[%clk 0:01:25.4]} 17... f6
{[%clk 0:01:38.3]} 18. Nxb7 {[%clk 0:01:20.7]} 18... e5 {[%clk 0:01:31.4]} 19.
Nba5 {[%clk 0:01:19.8]} 19... Rb8 {[%clk 0:01:26.6]} 20. Nc6 {[%clk 0:01:15.2]}
20... exf4 {[%clk 0:01:14.9]} 21. Nxe7+ {[%clk 0:01:15.1]} 21... Kf8 {[%clk
0:01:14.3]} 22. Nc6 {[%clk 0:01:10.3]} 22... Rb5 {[%clk 0:01:08.5]} 23. gxf4
{[%clk 0:01:07.4]} 23... Rc5 {[%clk 0:01:07.3]} 24. b3 {[%clk 0:01:05]} 24...
Bb7 {[%clk 0:00:56.7]} 25. Rxd7 {[%clk 0:01:01.3]} 25... Bxc6 {[%clk 0:00:57.3]}
26. Bxc6 {[%clk 0:01:01.7]} 26... Rxc6 {[%clk 0:00:58.2]} 27. Ra7 {[%clk
0:00:58.8]} 27... Nc7 {[%clk 0:00:56.3]} 28. e3 {[%clk 0:00:55.3]} 28... Nb5
{[%clk 0:00:55.4]} 29. Rd7 {[%clk 0:00:42.4]} 29... Nc3 {[%clk 0:00:54.6]} 30.
Rd2 {[%clk 0:00:41.4]} 30... Ne4 {[%clk 0:00:54.6]} 31. Rd4 {[%clk 0:00:34.8]}
31... Nc3 {[%clk 0:00:52.9]} 32. a4 {[%clk 0:00:33.8]} 32... Ke7 {[%clk
0:00:42.6]} 33. Ke1 {[%clk 0:00:33.8]} 33... Ke6 {[%clk 0:00:39.2]} 34. Kd2
{[%clk 0:00:33.7]} 34... Na2 {[%clk 0:00:35.2]} 35. e4 {[%clk 0:00:31.6]} 35...
Nb4 {[%clk 0:00:33.2]} 36. f5+ {[%clk 0:00:24.9]} 36... Ke7 {[%clk 0:00:32.5]}
37. Kc3 {[%clk 0:00:24.5]} 37... Na2+ {[%clk 0:00:29.8]} 38. Kb2 {[%clk
0:00:24.3]} 38... Nb4 {[%clk 0:00:30.4]} 39. f3 {[%clk 0:00:22.3]} 39... Rc7
{[%clk 0:00:24.6]} 40. h4 {[%clk 0:00:21.2]} 40... Nc6 {[%clk 0:00:20.9]} 41.
Rd6 {[%clk 0:00:18.3]} 41... Ne5 {[%clk 0:00:18.2]} 42. Re6+ {[%clk 0:00:18.4]}
42... Kf7 {[%clk 0:00:17.2]} 43. Nxe5+ {[%clk 0:00:19.3]} 43... fxe5 {[%clk
0:00:17.5]} 44. Rxe5 {[%clk 0:00:20.2]} 44... Rd7 {[%clk 0:00:17.8]} 45. Rd5
{[%clk 0:00:19.9]} 45... Rxd5 {[%clk 0:00:18]} 46. exd5 {[%clk 0:00:20]} 46...
Kf6 {[%clk 0:00:18.9]} 47. b4 {[%clk 0:00:19.9]} 47... Kxf5 {[%clk 0:00:19.5]}
48. b5 {[%clk 0:00:20.6]} 48... axb5 {[%clk 0:00:19.3]} 49. a5 {[%clk
0:00:21.2]} 49... Ke5 {[%clk 0:00:20]} 50. a6 {[%clk 0:00:21.7]} 1-0